bitfinex/quotes_ETHUSD_20220120
["timestamp","ask_amount","ask_price","bid_price","bid_amount"]
[1642723065792,0.00118424,2994.1,2993.7,1.14159441]
[1642723065992,0.00118424,2994.1,2993.7,1.14050495]
[1642723066193,0.00310381,2994.4,2993.8,3.4]
[1642723066393,0.00310381,2994.4,2993.9,0.88465393]
[1642723066595,0.00113685,2994.3,2993.9,0.88579078]
[1642723066794,0.00113685,2994.3,2994.0,0.83456]
[1642723066991,0.00113685,2994.3,2994.1,0.07066005]
[1642723067193,0.00113685,2994.3,2994.2,4.29993495]
[1642723067392,0.00310381,2994.4,2994.3,4.7690709]
[1642723067592,3.81e-06,2994.4,2994.3,4.7690709]
[1642723067803,2.34246646,2996.1,2994.3,27.8525709]
[1642723067999,1.43474739,2996.2,2994.3,27.8525709]
[1642723068000,1.43474739,2996.0,2994.8,20.20445]
[1642723068244,1.43474739,2995.9,2994.8,0.83445]
[1642723068442,1.43474739,2995.8,2995.3,1.5]
[1642723068645,0.00852635,2995.8,2995.0,0.834405]
[1642723068844,0.00795792,2995.7,2994.9,0.83446]
[1642723069245,0.0073895,2995.6,2994.9,0.83446]
[1642723069446,0.0073895,2995.6,2995.0,0.83441]
[1642723069646,0.83436,2996.8,2995.0,2.50312]
[1642723069647,0.00682108,2995.5,2995.0,2.50312]
[1642723069846,0.00682108,2995.5,2995.1,0.0371984]
[1642723070047,0.00625265,2995.4,2995.3,3.4]
[1642723070446,0.00625265,2995.4,2995.3,4.51034393]
[1642723070647,0.00625265,2995.4,2995.3,3.4]
[1642723071250,0.00625265,2995.4,2995.0,2.5031198]
[1642723071450,0.00625265,2995.4,2994.7,6.43432844]
[1642723071650,0.00568423,2995.3,2995.0,0.83443]
[1642723071851,0.00568423,2995.3,2994.9,0.834408]
[1642723072104,0.00511581,2995.2,2994.9,0.834408]
[1642723072304,0.00511581,2995.2,2994.7,3.3376713]
[1642723072506,0.00454738,2995.1,2994.7,3.3376713]
[1642723072707,0.00454738,2995.1,2994.9,0.02577663]
[1642723073009,0.00397896,2995.0,2994.8,0.8343998]
[1642723073211,0.00397896,2995.0,2994.3,5.38257]
[1642723073411,1.04873374,2995.7,2994.3,7.0516536]
[1642723073412,0.00341054,2994.9,2994.3,7.0516536]
[1642723073808,0.01207623,2995.9,2994.5,20.20457]
[1642723073809,0.00284211,2994.8,2994.5,20.20457]
[1642723074010,0.00284211,2994.8,2994.6,0.05853848]
[1642723074210,0.00227369,2994.7,2994.6,0.05853848]
[1642723074510,0.00227369,2994.7,2994.6,1.6688906]
[1642723074710,1.34396603,2996.1,2994.7,3.4]
[1642723074911,1.34396603,2996.1,2995.1,1.6685915]
[1642723075109,0.0073895,2996.0,2995.1,1.6685915]
[1642723075509,0.00682108,2995.9,2995.1,1.6685915]
[1642723075748,0.00682108,2995.9,2995.6,1.30546187]
[1642723075942,0.01489986,2996.6,2995.6,2.13972817]
[1642723075943,0.00625266,2995.8,2995.6,2.13972817]
[1642723076140,0.01489986,2996.6,2995.8,3.4]
[1642723076141,0.00221828,2996.6,2995.8,3.4]
[1642723076338,1.52681221,2997.4,2995.9,0.05109952]
[1642723076339,0.00221828,2996.9,2995.9,0.05109952]
[1642723076541,0.00397896,2996.5,2995.9,0.05109952]
[1642723076839,1.29906818,2997.3,2996.3,3.42901218]
[1642723076840,0.00341054,2996.4,2996.3,3.42901218]
[1642723077043,0.00341054,2996.4,2996.3,3.4]
[1642723077244,1.29599638,2997.2,2996.3,3.4]
[1642723077245,0.00221828,2997.1,2996.3,3.4]
[1642723077443,0.02618485,2997.4,2996.4,3.4]
[1642723077644,0.02618485,2997.4,2996.5,0.46116288]
[1642723077645,0.00619724,2997.1,2996.5,0.46116288]
[1642723077843,0.02618485,2997.4,2996.6,3.4]
[1642723078044,0.02618485,2997.4,2996.8,0.83372]
[1642723078248,0.02618485,2997.4,2996.8,2.06845]
[1642723078249,0.00113685,2997.3,2996.8,2.06845]
[1642723078548,0.02618485,2997.4,2997.0,3.1]
[1642723078746,0.02618485,2997.4,2997.1,0.401]
[1642723079050,0.02618485,2997.4,2997.1,0.40213685]
[1642723079246,8.485e-05,2997.4,2997.2,0.83367]
[1642723079488,8.485e-05,2997.4,2997.3,3.801]
[1642723079692,3.63454201,2999.0,2997.4,3.4]
[1642723079893,1.28657781,2998.9,2997.7,1.66692]
[1642723080093,1.28657781,2998.9,2997.7,2.06792]
[1642723080094,1.28879609,2998.8,2997.7,2.06792]
[1642723080295,1.28657781,2998.7,2998.6,1.15233364]
[1642723080493,1.29453574,2998.7,2998.0,1.14943574]
[1642723080692,1.29453574,2998.7,2997.2,3.8277]
[1642723080693,0.01202959,2998.5,2997.2,3.8277]
[1642723080898,0.01265004,2997.9,2997.1,0.00113685]
[1642723081098,1.2561532,2998.4,2997.3,0.00795793]
[1642723081099,1.26240586,2998.4,2997.3,0.00795793]
[1642723081296,1.26240586,2998.4,2997.0,0.0096632]
[1642723081297,1.2561532,2998.3,2997.0,0.0096632]
[1642723081497,1.2561532,2998.2,2996.9,0.01023162]
[1642723081695,1.50099707,2997.8,2996.9,0.01023162]
[1642723081899,1.80099707,2997.8,2996.9,0.01023162]
[1642723082097,1.80099707,2997.8,2996.8,0.01080005]
[1642723082296,1.80099707,2997.8,2996.6,0.0119369]
[1642723082297,1.50099707,2997.8,2996.6,0.0119369]
[1642723082498,1.50099707,2997.8,2996.4,0.1821]
[1642723082499,1.15687875,2997.7,2996.5,0.01250532]
[1642723082698,1.50099707,2997.8,2996.9,1.25580829]
[1642723083099,1.1611344,2998.0,2997.0,0.0096632]
[1642723083352,1.10773564,2997.9,2997.0,0.0096632]
[1642723083747,1.4611344,2998.0,2997.0,0.0096632]
[1642723083942,2.2951844,2998.0,2997.0,0.0096632]
[1642723084144,0.3,2998.0,2997.0,0.0096632]
[1642723084547,1.47314019,2998.3,2997.0,0.0096632]
[1642723084548,1.77314019,2998.3,2997.0,0.0096632]
[1642723084747,0.00625266,2998.4,2997.4,1.28813561]
[1642723085150,0.00625266,2998.4,2997.9,0.89358843]
[1642723085549,0.00625266,2998.4,2998.0,0.00397897]
[1642723085750,0.00625266,2998.4,2998.3,1.25286519]
[1642723085951,0.00625266,2998.4,2998.3,3.75286519]
[1642723086456,0.00625266,2998.4,2998.3,3.75513889]
[1642723087489,0.08819997,2999.7,2998.4,3.4]
[1642723087688,4.05761901,3000.3,2998.6,0.8332409]
[1642723087689,0.91891901,3000.3,2998.6,0.8332409]
[1642723087991,0.91891901,3000.3,2998.7,0.00625266]
[1642723088187,1.31127617,3000.4,2999.4,1.22231649]
[1642723088588,1.31127617,3000.4,2999.5,0.00170527]
[1642723088788,2.41739988,3000.8,2999.5,0.00170527]
[1642723089187,1.04077245,3000.1,2999.5,0.00170527]
[1642723089893,1.04077245,3000.1,2999.0,0.00454739]
[1642723090288,1.04077245,3000.1,2998.8,3.7896]
[1642723090289,0.7219,3000.0,2999.2,1.24362606]
[1642723090589,0.7219,3000.0,2999.3,0.00284212]
[1642723091237,0.7219,3000.0,2998.9,0.00511582]
[1642723091442,0.00322846,2999.9,2998.9,0.00245578]
[1642723091650,0.00322846,2999.9,2998.5,0.00472947]
[1642723091843,0.87321813,2999.0,2998.3,0.01236894]
[1642723092045,0.87321813,2999.0,2998.4,0.00529789]
[1642723092246,0.00869936,2998.9,2998.4,0.00529789]
[1642723092443,0.00869936,2998.9,2998.1,0.00700316]
[1642723092843,0.00221731,2998.9,2998.1,0.00700316]
[1642723094148,0.98512,2998.5,2998.1,0.00700316]
[1642723094790,0.98512,2998.5,2997.3,0.01155055]
[1642723094991,0.01028833,2998.4,2997.3,0.01155055]
[1642723095288,0.00221756,2998.4,2997.3,1.11529716]
[1642723095489,0.01474899,2998.7,2997.3,1.11529716]
[1642723095691,0.00221756,2998.7,2997.4,0.01098213]
[1642723096292,0.00221756,2998.7,2997.9,2.18775722]
[1642723096487,2.22996373,2998.8,2997.4,0.01098213]
[1642723096488,2.52996373,2998.8,2997.4,0.01098213]
[1642723096692,2.52996373,2998.8,2997.1,3.9452]
[1642723096693,0.83608756,2998.7,2998.0,0.00757159]
[1642723096889,0.00221756,2998.7,2997.2,0.01211897]
[1642723097489,1.37302101,2998.2,2997.3,1.50448258]
[1642723097689,0.00221756,2998.9,2997.3,1.50448258]
[1642723097891,6.88968232,2999.3,2997.4,0.05894314]
[1642723097892,0.00221756,2999.2,2997.4,0.05894314]
[1642723098330,0.01238232,2999.3,2997.5,0.0104137]
[1642723098732,1.19472661,2998.8,2997.4,0.01098213]
[1642723098934,0.01237867,2998.6,2997.4,0.01098213]
[1642723099135,0.01237867,2998.6,2997.2,0.01211897]
[1642723099337,0.01694697,2998.5,2997.2,0.01211897]
[1642723099535,0.00221756,2998.5,2997.2,0.01211897]
[1642723099739,1.53344723,2997.8,2997.2,0.01211897]
[1642723100339,1.53344723,2997.8,2997.0,0.01325582]
[1642723100543,0.00221756,2997.8,2997.0,0.01325582]
[1642723100742,0.01237867,2998.6,2997.0,0.01325582]
[1642723100743,0.00221756,2998.6,2997.0,0.01325582]
[1642723100944,0.00221756,2999.0,2997.0,19.46332015]
[1642723101140,0.00221756,2999.0,2997.1,0.401]
[1642723101345,0.00221756,2999.0,2997.6,0.01208002]
[1642723101545,0.00221756,2999.4,2999.0,1.09437335]
[1642723101744,0.13819997,2999.5,2998.6,1.09704012]
[1642723102009,0.13819997,2999.5,2998.1,0.401]
[1642723102010,0.95116527,2998.8,2998.1,0.401]
[1642723102394,0.95116527,2998.8,2998.2,0.00643474]
[1642723102593,0.95116527,2998.8,2998.2,0.8828677]
[1642723102793,0.95116527,2998.8,2998.2,0.00643474]
[1642723103095,1.31054061,2998.4,2997.9,0.00814001]
[1642723104095,0.00221731,2998.7,2997.9,0.00814001]
[1642723104297,0.95116527,2998.8,2997.9,0.00814001]
[1642723104496,0.00221731,2998.7,2997.9,0.00814001]
[1642723104697,0.95116527,2998.8,2997.9,0.00814001]
[1642723104898,0.9098485,2998.6,2997.9,0.00814001]
[1642723105096,0.92200181,2998.1,2997.9,0.00814001]
[1642723105499,1.24650469,2998.4,2997.9,0.00814001]
[1642723105935,0.01470933,2998.7,2997.9,0.00814001]
[1642723106136,0.01249202,2998.7,2997.9,0.00814001]
[1642723106338,0.01470933,2998.7,2997.9,0.00814001]
[1642723106538,1.0167985,2998.5,2997.9,0.00814001]
[1642723106735,0.01470933,2998.7,2997.9,0.00814001]
[1642723107139,0.00221731,2998.7,2997.9,0.00814001]
[1642723107338,0.95116527,2998.8,2997.9,0.00814001]
[1642723107538,0.00221731,2998.7,2997.9,0.00814001]
[1642723107736,0.95116527,2998.8,2997.9,0.00814001]
[1642723107938,0.00221731,2998.7,2997.9,0.00814001]
[1642723108140,0.95116527,2998.8,2998.6,1.01263172]
[1642723108339,0.00221731,2998.7,2998.6,1.01263172]
[1642723108539,0.95116527,2998.8,2998.7,2.15359262]
[1642723108738,0.95116527,2998.8,2998.7,2.15]
[1642723108938,0.95116527,2998.8,2998.7,2.15359262]
[1642723109590,0.95116527,2998.8,2998.7,3.40359262]
[1642723110190,0.00221731,2999.9,2998.9,0.02145501]
[1642723110393,0.00221731,2999.9,2998.8,3.4]
[1642723110394,0.00221731,2999.9,2999.0,0.401]
[1642723110591,0.00221731,2999.9,2999.1,0.41745259]
[1642723110592,0.00209161,2999.7,2999.1,0.41745259]
[1642723110790,0.00209161,2999.7,2999.1,0.40231893]
[1642723110989,0.00152319,2999.6,2999.1,0.40231893]
[1642723111191,0.00152319,2999.6,2999.2,21.60835808]
[1642723111393,0.7219,3000.0,2999.2,22.05935807]
[1642723111394,0.00095477,2999.5,2999.2,22.05935807]
[1642723111600,0.00095477,2999.5,2999.2,2.68935807]
[1642723111994,0.00095477,2999.5,2999.3,19.37]
[1642723112192,0.00095477,2999.5,2999.2,2.68935807]
[1642723112398,0.00095477,2999.5,2999.3,0.01259234]
[1642723112593,0.00095477,2999.5,2999.1,0.00131893]
[1642723112794,0.00095477,2999.5,2998.5,0.2187]
[1642723113000,0.00170527,2999.4,2998.0,9.6714]
[1642723113244,0.00170527,2999.4,2998.6,0.00284212]
[1642723113437,1.29470916,2999.0,2998.6,0.00284212]
[1642723113640,1.29470916,2999.0,2997.9,4.3833]
[1642723113641,1.29470916,2999.0,2998.2,0.00511581]
[1642723113843,0.00221731,2998.9,2998.2,0.00511581]
[1642723114041,0.00221731,2998.9,2998.0,0.00625266]
[1642723114641,0.00221731,2998.9,2998.2,1.08780371]
[1642723114844,0.00397897,2999.8,2998.4,0.060575]
[1642723114845,0.00619628,2999.8,2998.4,0.060575]
[1642723115050,0.00619628,2999.8,2998.4,2.33323738]
[1642723115248,0.00619628,2999.8,2998.5,0.40441054]
[1642723115249,0.00341054,2999.7,2998.5,0.40441054]
[1642723115446,0.00341054,2999.7,2998.6,0.401]
[1642723115647,0.00221731,2999.8,2998.9,1.5]
[1642723115648,0.00284212,2999.6,2998.9,1.5]
[1642723115849,0.00221862,2999.9,2999.5,0.01252696]
[1642723116053,0.16697,3002.1,2999.8,0.01237037]
[1642723116054,1.50698712,3001.7,2999.8,0.01237037]
[1642723116248,0.00170527,2999.9,2999.8,0.01237037]
[1642723116444,2.48902287,3001.9,2999.8,0.41337037]
[1642723116445,0.9002274,3001.6,2999.8,0.41337037]
[1642723116645,0.88885893,3001.5,2999.9,0.0177716]
[1642723116846,0.88885893,3001.5,3000.0,0.401]
[1642723116847,0.63885893,3001.4,3000.0,0.401]
[1642723117089,1.2321641,3001.0,3000.0,0.401]
[1642723117292,0.01222808,3002.0,3000.1,0.3693852]
[1642723117293,0.0096632,3001.3,3000.1,0.3693852]
[1642723117491,0.01222808,3002.0,3000.3,0.04427719]
[1642723117492,0.0073895,3000.9,3000.3,0.04427719]
[1642723117696,0.01222808,3002.0,3000.5,0.02818774]
[1642723117697,0.00909477,3001.2,3000.5,0.02818774]
[1642723117893,0.00682108,3000.8,3000.6,0.401]
[1642723118094,0.01222808,3002.0,3000.9,1.00486491]
[1642723118095,0.00852635,3001.1,3000.9,1.00486491]
[1642723118298,1.27796777,3001.7,3001.0,0.401]
[1642723118592,1.28990466,3001.7,3001.0,0.401]
[1642723118993,0.01193689,3001.7,3001.0,0.401]
[1642723119594,1.12363689,3002.8,3001.2,3.39598842]
[1642723119800,0.01261896,3003.0,3001.3,0.401]
[1642723119996,0.00284212,3002.2,3001.3,4.13397369]
[1642723120198,0.00284212,3002.2,3001.6,1.10152664]
[1642723120396,0.0022737,3002.1,3001.6,1.10152664]
[1642723120854,0.00170527,3002.0,3001.7,0.401]
[1642723121258,3.685e-05,3001.9,3001.8,19.37]
[1642723121459,3.685e-05,3001.9,3001.8,19.8403852]
[1642723121660,0.00628951,3003.0,3001.8,20.1403852]
[1642723121858,0.00628951,3003.0,3001.8,20.071]
[1642723122058,0.00572108,3002.9,3001.8,0.401]
[1642723122457,1.42369736,3002.4,3002.2,4.5]
[1642723122660,1.42369736,3002.4,3002.2,0.75543444]
[1642723122861,0.00231054,3002.3,3002.2,0.75543444]
[1642723123860,0.00231054,3002.3,3001.9,0.01483434]
[1642723124059,1.29639051,3003.1,3002.0,2.05]
[1642723124261,1.29639051,3003.1,3001.9,0.01483434]
[1642723124262,1.14802196,3002.6,3001.9,0.01483434]
[1642723124507,1.14802196,3002.6,3002.1,0.00113684]
[1642723124702,1.14802196,3002.6,3002.0,0.00170527]
[1642723124905,1.28647509,3002.5,3002.0,0.00170527]
[1642723125105,0.01271722,3002.4,3002.0,0.00170527]
[1642723125409,1.08606159,3001.8,3001.4,3.0]
[1642723125603,1.08606159,3001.8,2999.7,2.34776052]
[1642723125604,0.01294308,3001.5,2999.7,2.34776052]
[1642723125805,0.01294308,3001.5,3001.0,1.5]
[1642723125806,0.01341495,3001.4,3001.0,1.5]
[1642723126006,0.00850295,3001.4,3001.0,1.5]
[1642723126206,1.22782411,3001.3,3001.1,0.00511581]
[1642723126606,2.14924057,3001.3,3001.1,0.00511581]
[1642723127005,0.01294308,3001.5,3001.1,0.00511581]
[1642723127208,0.00141805,3001.9,3001.1,0.00511581]
[1642723127410,0.83296,3001.7,3001.1,0.00511581]
[1642723127606,0.83296,3001.7,2999.6,2.34776052]
[1642723127607,0.00479372,3001.4,2998.6,0.401]
[1642723127805,0.401,3001.3,2999.1,7.93256052]
[1642723128010,0.01206262,3001.0,2999.6,0.00852635]
[1642723128236,0.01206262,3001.0,3000.1,0.92843035]
[1642723128437,1.00222143,3001.2,3000.1,0.92843035]
[1642723128638,0.00222143,3001.2,3000.2,0.00511581]
[1642723129237,0.00222143,3001.2,3000.6,0.98098915]
[1642723129437,0.00113685,3001.3,3000.6,0.98098915]
[1642723129642,1.21297886,3001.4,3000.7,0.00227369]
[1642723129842,1.21075743,3001.4,3000.7,0.00341054]
[1642723130044,0.00222143,3001.6,3000.7,0.00341054]
[1642723130248,0.00222143,3001.7,3000.7,0.00341054]
[1642723130445,0.00113684,3001.5,3000.7,0.00341054]
[1642723130844,0.00506354,3001.8,3000.7,0.00341054]
[1642723131050,0.01220004,3001.7,3000.7,0.00341054]
[1642723131244,0.01220004,3001.7,2999.8,3.8089]
[1642723131245,0.01447373,3001.7,2999.9,0.00795793]
[1642723131445,0.00170527,3001.6,2999.9,0.00795793]
[1642723131648,0.00170527,3001.6,3000.0,0.07618856]
[1642723131846,0.00170527,3001.6,2999.9,2.96475929]
[1642723132089,0.00170527,3001.6,3000.7,1.14339388]
[1642723132389,0.00170527,3001.6,3000.8,0.00284212]
[1642723132789,0.00170527,3001.6,3000.7,0.00341054]
[1642723132990,0.00170527,3001.6,2999.9,2.76399284]
[1642723133194,0.00170527,3001.6,3000.0,0.00738951]
[1642723133589,1.17002544,3001.4,3000.5,0.83770024]
[1642723133793,0.00222143,3001.3,3000.6,1.48906561]
[1642723133991,1.35850076,3001.5,3000.6,1.49304458]
[1642723134193,0.00222143,3001.3,3000.7,0.00341054]
[1642723134391,0.00170527,3001.6,3000.7,0.00341054]
[1642723134794,0.00170527,3001.6,3000.7,0.07297091]
[1642723134995,0.00170527,3001.6,3001.5,3.39829902]
[1642723135194,0.00170527,3001.6,3001.5,4.70927372]
[1642723136051,0.00170527,3001.6,3001.5,2.20927372]
[1642723137351,0.00170527,3001.6,3001.5,21.57927372]
[1642723137554,0.00170527,3001.6,3001.5,2.20927372]
[1642723138151,0.00170527,3001.6,3001.5,21.57927372]
[1642723138355,0.00170527,3001.6,3001.5,2.20927372]
[1642723139352,0.00170527,3001.6,3001.5,4.45927372]
[1642723139589,0.00170527,3001.6,3001.5,23.82927372]
[1642723139791,0.00170527,3001.6,3001.5,4.45927372]
[1642723140691,5.27e-06,3001.6,3001.5,4.45927372]
[1642723140895,5.27e-06,3001.6,3001.5,24.12927372]
[1642723141890,5.27e-06,3001.6,3001.5,24.19883409]
[1642723142093,5.27e-06,3001.6,3000.9,0.2602]
[1642723142292,5.27e-06,3001.6,3000.9,18.40996037]
[1642723142492,5.27e-06,3001.6,3001.5,0.01501065]
[1642723143093,5.27e-06,3001.6,3001.5,0.95169979]
[1642723143360,5.27e-06,3001.6,3001.5,19.36166016]
[1642723143752,5.27e-06,3001.6,3001.5,19.4308995]
[1642723144355,5.27e-06,3001.6,3001.5,20.69452355]
[1642723144658,5.27e-06,3001.6,3001.5,21.39552355]
[1642723144855,2.332e-05,3001.9,3001.5,21.39552355]
[1642723145055,2.332e-05,3001.9,3001.6,0.1332]
[1642723145256,3.684e-05,3001.8,3001.7,3.751]
[1642723145455,3.684e-05,3001.8,3001.7,3.82023934]
[1642723145656,3.684e-05,3001.8,3001.7,22.53019971]
[1642723145854,3.684e-05,3001.8,3001.7,27.12919971]
[1642723146061,3.684e-05,3001.8,3001.7,28.53019971]
[1642723146659,3.684e-05,3001.8,3001.7,23.53019971]
[1642723146860,3.684e-05,3001.8,3001.7,28.53019971]
[1642723147084,0.01201113,3004.3,3001.8,3.35]
[1642723147283,0.00222225,3003.0,3002.0,0.0221508]
[1642723147489,0.5951457,3004.2,3002.0,0.0221508]
[1642723147490,0.00625266,3002.9,3002.8,1.46590522]
[1642723147691,0.00625266,3002.9,3002.8,19.87586559]
[1642723147891,0.00222225,3003.9,3002.8,20.91538216]
[1642723148087,0.00222225,3003.9,3002.8,19.87586559]
[1642723148292,0.01136847,3003.8,3003.3,1.3321942]
[1642723148490,0.01136847,3003.8,3003.3,0.36027071]
[1642723148693,0.01080005,3003.7,3003.3,0.36027071]
[1642723149093,0.01023163,3003.6,3003.4,2.51186736]
[1642723149294,0.01023163,3003.6,3003.5,3.0]
[1642723149502,0.01201113,3004.3,3003.5,5.44674109]
[1642723149995,0.01364217,3004.2,3003.5,3.0]
[1642723150194,0.01364217,3004.2,3003.2,4.3442]
[1642723150393,0.08819997,3005.0,3003.2,3.9432]
[1642723150394,0.01241724,3003.6,3003.2,3.9432]
[1642723150595,0.01307374,3004.1,3003.2,3.9432]
[1642723150845,0.0096632,3003.5,3003.2,3.9432]
[1642723151044,0.01289624,3004.7,3003.2,3.9432]
[1642723151045,0.01250532,3004.0,3003.2,3.9432]
[1642723151250,0.01289624,3004.7,3003.3,4.39963882]
[1642723151251,0.00909478,3003.4,3003.3,4.39963882]
[1642723151449,0.0119369,3003.9,3003.3,6.95035739]
[1642723151644,0.00909478,3003.4,3003.3,4.39963882]
[1642723151846,0.01136847,3003.8,3003.3,1.34963882]
[1642723152044,0.00909478,3003.4,3003.3,1.34963882]
[1642723152344,0.00909478,3003.4,3003.3,4.0876675]
[1642723152745,0.00909478,3003.4,3003.3,6.62463315]
[1642723152945,0.00909478,3003.4,3003.3,26.39563315]
[1642723153345,0.00909478,3003.4,3003.3,26.76487124]
[1642723153546,0.00909478,3003.4,3003.3,24.22790559]
[1642723154346,0.00909478,3003.4,3003.3,24.36100559]
[1642723155197,0.00909478,3003.4,3003.3,4.99100559]
[1642723155399,0.00909478,3003.4,3003.3,24.1586675]
[1642723155597,0.00909478,3003.4,3003.3,4.7886675]
[1642723156198,0.00909478,3003.4,3003.3,7.11048635]
[1642723156402,9.478e-05,3003.4,3003.3,25.49515694]
[1642723156599,9.478e-05,3003.4,3003.3,26.73093809]
[1642723157602,1.07170888,3005.3,3004.4,2.38564515]
[1642723157805,0.01225853,3005.4,3003.4,3.35]
[1642723157806,0.01225853,3005.4,3003.7,0.401]
[1642723158002,0.01206603,3004.9,3004.0,0.13819997]
[1642723158231,0.01023162,3005.2,3004.0,0.13819997]
[1642723158435,0.00795793,3004.8,3004.3,0.01984146]
[1642723158633,0.0096632,3005.1,3004.3,0.01984146]
[1642723158835,0.00738951,3004.7,3004.3,0.01984146]
[1642723159043,0.0127103,3005.6,3004.3,0.01984146]
[1642723159044,0.00909478,3005.0,3004.4,2.25282665]
[1642723159237,0.00682108,3004.6,3004.3,19.37]
[1642723159437,0.0127103,3005.6,3004.4,1.92116468]
[1642723159438,0.00852635,3004.9,3004.4,1.92116468]
[1642723159637,0.0504585,3005.9,3004.5,19.37]
[1642723159839,0.44502272,3005.8,3004.5,19.721]
[1642723160038,0.01193689,3005.5,3004.5,19.721]
[1642723160238,0.01193689,3005.5,3004.9,1.04493539]
[1642723160439,0.01136847,3005.4,3004.9,1.04493539]
[1642723160639,0.01136847,3005.4,3004.9,2.87250984]
[1642723160840,0.01080005,3005.3,3004.9,2.87250984]
[1642723161340,0.01023162,3005.2,3004.9,1.34493539]
[1642723161738,1.53168217,3005.8,3004.9,1.34493539]
[1642723161739,0.0096632,3005.1,3004.9,1.34493539]
[1642723162186,0.00909478,3005.0,3004.5,0.401]
[1642723162389,0.00909478,3005.0,3004.5,0.3]
[1642723162590,0.01244214,3005.8,3004.4,5.12833055]
[1642723162591,0.00852635,3004.9,3004.4,3.8765]
[1642723162792,0.00852635,3004.9,3004.4,3.7434]
[1642723162992,0.00795793,3004.8,3004.4,3.7434]
[1642723163394,0.00738951,3004.7,3003.8,19.37]
[1642723163594,0.00325622,3004.5,3003.8,19.37]
[1642723163792,1.31316906,3004.6,3003.8,19.37]
[1642723163994,0.00568423,3004.4,3003.8,19.37]
[1642723164197,0.00625266,3004.5,3003.8,19.37]
[1642723164493,1.30634798,3004.6,3003.8,20.35107403]
[1642723164494,0.00568423,3004.4,3003.8,20.35107403]
[1642723164695,0.00568423,3004.4,3003.8,19.37]
[1642723164896,0.00511581,3004.3,3003.5,0.5]
[1642723165099,0.00511581,3004.3,3003.4,0.1331]
[1642723165100,1.24681511,3003.8,3003.4,0.1331]
[1642723165299,2.60210026,3004.9,3002.9,20.80177735]
[1642723165300,0.00454739,3004.2,3002.9,20.80177735]
[1642723165497,0.01086979,3004.8,3002.9,20.78903237]
[1642723165498,0.00170527,3003.7,3002.9,20.78903237]
[1642723165746,0.9512248,3004.0,3003.0,0.84820486]
[1642723165944,0.00113685,3003.6,3003.0,0.00227369]
[1642723166144,0.00113685,3003.6,3002.5,4.3008]
[1642723166145,0.00897894,3003.8,3003.1,0.00170527]
[1642723166344,0.00506485,3003.9,3002.6,19.37454739]
[1642723166345,0.00284212,3003.9,3002.6,19.37454739]
[1642723166544,0.00170527,3003.7,3002.6,19.37454739]
[1642723166750,0.00227369,3003.8,3002.7,0.00397896]
[1642723166949,0.00222273,3003.9,3002.7,0.00397896]
[1642723166950,1.29912615,3003.5,3002.8,19.37]
[1642723167349,0.00227369,3003.8,3002.9,0.00284212]
[1642723167850,0.00170527,3003.7,3002.9,0.00284212]
[1642723168250,0.00113685,3003.6,3002.9,0.00284212]
[1642723168463,0.00113685,3003.6,3003.5,3.81018829]
[1642723168652,0.00222273,3004.3,3003.5,3.81018829]
[1642723168950,0.00454739,3004.2,3003.5,2.6]
[1642723169353,0.00222273,3004.3,3003.5,2.6]
[1642723169354,0.00397896,3004.1,3003.5,2.6]
[1642723169595,0.00397896,3004.1,3003.5,2.9]
[1642723169798,3.8658,3005.7,3003.7,0.05870518]
[1642723169799,0.00341054,3004.0,3003.7,0.05870518]
[1642723169993,0.00341054,3004.0,3003.8,19.80189811]
[1642723170194,3.0482,3005.7,3003.8,20.1403859]
[1642723170195,0.00284212,3003.9,3003.8,20.1403859]
[1642723170394,0.00284212,3003.9,3003.8,20.20522631]
[1642723170597,0.00222273,3005.6,3003.8,20.20522631]
[1642723170598,1.22455056,3005.2,3003.8,20.20522631]
[1642723170794,1.22455056,3005.2,3004.1,1.41574257]
[1642723170795,1.22232783,3005.2,3004.1,1.41574257]
[1642723170998,0.00848593,3005.1,3004.1,1.41574257]
[1642723171194,0.00848593,3005.1,3004.1,1.71574257]
[1642723171397,0.00569478,3005.0,3004.1,1.71574257]
[1642723171599,0.00569478,3005.0,3004.1,0.3]
[1642723171795,0.00222273,3005.1,3004.1,0.3]
[1642723171796,0.00512635,3004.9,3004.1,0.3]
[1642723172004,0.00512635,3004.9,3003.8,0.47168454]
[1642723172208,0.00455793,3004.8,3003.8,0.00112631]
[1642723172398,0.24143443,3005.2,3003.9,3.35]
[1642723172600,0.00569478,3005.0,3004.1,1.42396033]
[1642723172797,0.19935395,3005.2,3004.2,3.35]
[1642723172997,2.9982,3005.7,3004.2,4.12071054]
[1642723173242,0.0504585,3005.9,3004.9,0.97785762]
[1642723173450,2.95230846,3007.0,3005.1,0.01156877]
[1642723173451,1.1283,3006.4,3005.1,0.01156877]
[1642723173645,1.1283,3006.4,3005.0,3.50455793]
[1642723173849,0.00226315,3006.2,3005.2,0.00342109]
[1642723174045,0.00226315,3006.2,3005.0,3.2]
[1642723174046,1.42539252,3005.7,3005.0,3.2]
[1642723174249,1.42539252,3005.7,3004.6,0.401]
[1642723174450,0.00284212,3005.6,3004.6,0.401]
[1642723174649,0.00284212,3005.6,3004.7,0.00227369]
[1642723174847,0.00227369,3005.5,3004.7,0.00227369]
[1642723175245,0.00170527,3005.4,3004.6,0.401]
[1642723175448,1.12107554,3005.2,3004.6,0.401]
[1642723175646,0.00341054,3005.3,3004.6,0.401]
[1642723175849,0.00227369,3005.1,3004.6,0.401]
[1642723176047,0.01290323,3005.9,3004.6,0.401]
[1642723176048,0.00284211,3005.2,3004.6,0.401]
[1642723176252,0.00170527,3005.0,3004.6,0.401]
[1642723176450,0.00227369,3005.1,3004.6,0.401]
[1642723176649,0.01290323,3005.9,3004.6,0.401]
[1642723176650,0.00113684,3004.9,3004.6,0.401]
[1642723176849,1.2341,3006.9,3004.6,0.401]
[1642723176850,0.00170527,3005.0,3004.6,20.65606551]
[1642723177104,0.00625265,3005.8,3004.7,3.06026072]
[1642723177301,1.08859827,3004.8,3004.6,0.47024538]
[1642723177498,1.08859827,3004.8,3004.3,0.1331]
[1642723177895,1.08859827,3004.8,3004.3,0.08480528]
[1642723178298,0.00170528,3004.7,3004.2,0.7673]
[1642723178698,0.00113685,3004.6,3004.2,0.7673]
[1642723179099,0.00170528,3004.7,3004.2,0.7673]
[1642723179500,0.02731344,3004.6,3004.2,0.7673]
[1642723179704,0.00113685,3004.6,3004.2,0.7673]
[1642723179903,0.00170528,3004.7,3004.2,0.7673]
[1642723180301,0.01206586,3005.7,3004.3,2.49533]
[1642723180302,0.00113685,3004.6,3004.3,2.49533]
[1642723180602,0.01206586,3005.7,3004.5,3.35]
[1642723180846,1.401,3006.4,3004.5,4.18154]
[1642723180847,2.00355796,3006.1,3004.5,4.18154]
[1642723181045,0.01294343,3005.4,3004.4,0.00113685]
[1642723181445,0.00397897,3005.3,3004.5,1.01289506]